bitfinex-derivatives/quotes_ETHF0:USTF0_20250903
["timestamp","ask_amount","ask_price","bid_price","bid_amount"]
[1756858980220,0.4129,4318.7,4318.4,0.323]
[1756858980427,4.23152,4319.3,4318.2,0.236]
[1756858980428,0.4129,4318.5,4318.2,0.236]
[1756858980724,0.4129,4318.1,4318.0,0.236]
[1756858980916,0.7121,4318.1,4318.0,0.236]
[1756858981116,0.7121,4318.1,4317.9,0.236]
[1756858981317,0.7121,4318.1,4317.6,0.236]
[1756858981521,0.4129,4317.0,4316.9,0.9689]
[1756858982433,0.7121,4316.2,4316.1,0.7329]
[1756858982620,0.7121,4316.2,4316.1,0.9689]
[1756858982925,0.1998,4316.2,4316.1,0.9689]
[1756858984025,3.2078,4316.5,4316.4,0.4099]
[1756858984228,3.9199,4316.5,4316.4,0.7329]
[1756858984727,3.6207,4316.5,4316.4,0.7329]
[1756858985722,3.9199,4316.5,4316.4,0.7329]
[1756858990429,0.7121,4316.5,4316.4,0.7329]
[1756858992331,0.7121,4316.5,4316.4,0.9689]
[1756858992726,3.2078,4317.6,4316.5,0.3162]
[1756858993029,3.6265,4317.6,4317.5,0.73]
[1756858993430,3.9294,4317.6,4317.5,0.73]
[1756858993625,3.2078,4317.6,4317.5,5.17572528]
[1756858994229,0.5167,4318.0,4317.9,0.4138]
[1756858994423,0.7216,4318.0,4317.9,0.236]
[1756858994928,0.7216,4318.0,4317.9,0.4458]
[1756858995231,3.4438,4318.7,4317.9,0.6498]
[1756858995432,0.2138,4318.0,4317.9,0.6498]
[1756858995932,0.2138,4318.0,4317.9,0.966]
[1756858997033,3.2078,4318.7,4317.9,0.6498]
[1756858997329,0.7216,4318.6,4318.5,0.73]
[1756858997518,0.7216,4318.6,4318.5,0.966]
[1756858998124,0.4187,4318.6,4318.5,0.966]
[1756858998319,0.5167,4319.0,4318.9,0.4138]
[1756858998524,0.7216,4319.0,4318.9,0.73]
[1756859002929,0.7216,4319.0,4318.9,0.526]
[1756859006233,0.7216,4319.0,4318.9,0.73]
[1756859011639,0.4187,4319.0,4318.4,5.335]
[1756859011832,3.2078,4319.2,4318.4,6.065]
[1756859011833,0.7216,4318.5,4318.4,6.065]
[1756859012034,0.2138,4318.5,4318.4,6.065]
[1756859012645,3.9294,4319.2,4319.1,0.73]
[1756859013146,3.9294,4319.2,4319.1,0.526]
[1756859013344,3.9294,4319.2,4319.1,0.2098]
[1756859013844,3.9294,4319.2,4319.1,0.73]
[1756859022053,3.99585261,4320.8,4319.1,0.73]
[1756859022054,0.3015,4320.1,4319.8,0.321]
[1756859022256,0.713,4320.1,4320.0,0.7245]
[1756859023851,0.1967,4320.1,4320.0,0.7245]
[1756859024946,0.4982,4320.1,4320.0,0.7245]
[1756859025149,0.1967,4320.1,4320.0,0.7245]
[1756859025543,0.1967,4320.1,4320.0,1.8483323]
[1756859025856,0.1967,4320.1,4320.0,0.7245]
[1756859026051,0.713,4320.1,4320.0,0.7245]
[1756859026250,0.713,4320.1,4320.0,0.201]
[1756859026450,0.713,4320.0,4319.9,0.236]
[1756859028165,0.3015,4319.9,4319.8,1.1238323]
[1756859028365,0.713,4319.9,4319.8,1.3248323]
[1756859028553,0.713,4319.9,4319.8,1.6458323]
[1756859029061,0.713,4319.9,4319.8,1.3248323]
[1756859029565,0.713,4319.9,4319.8,1.6458323]
[1756859030057,0.3015,4319.8,4319.7,0.236]
[1756859030362,0.713,4319.8,4319.7,0.236]
[1756859031151,0.3015,4320.1,4319.7,1.7633323]
[1756859031352,0.4982,4320.1,4320.0,1.8483323]
[1756859031556,0.713,4320.1,4320.0,1.8483323]
[1756859035464,0.1967,4320.1,4320.0,1.8483323]
[1756859035664,3.4045,4320.2,4320.1,0.7245]
[1756859035865,3.4045,4320.2,4319.9,1.1238323]
[1756859035866,0.4115,4320.0,4319.9,1.1238323]
[1756859036069,0.713,4320.0,4319.9,1.3598323]
[1756859036371,0.713,4320.0,4319.9,1.3248323]
[1756859036862,0.713,4320.0,4319.9,1.6458323]
[1756859037772,0.713,4320.0,4319.9,1.1238323]
[1756859039176,0.713,4320.0,4319.9,1.6458323]
[1756859039363,0.713,4320.0,4319.9,1.3248323]
[1756859040273,0.713,4320.0,4319.9,1.6458323]
[1756859041069,0.3015,4319.9,4319.5,0.321]
[1756859041372,0.713,4319.2,4319.1,0.9605]
[1756859041570,3.9208,4319.2,4319.1,0.7245]
[1756859042370,3.2078,4319.9,4319.1,4.63503]
[1756859042570,3.4045,4319.9,4319.8,0.4035]
[1756859042874,3.706,4319.9,4319.8,0.7245]
[1756859043572,3.9208,4319.9,4319.8,0.7245]
[1756859043965,0.1195,4321.0,4319.8,0.4035]
[1756859043966,0.3015,4320.3,4319.8,0.4035]
[1756859044266,0.713,4320.3,4320.2,0.7245]
[1756859044668,3.2078,4320.4,4320.2,0.7245]
[1756859044974,3.2078,4320.4,4320.3,1.8483323]
[1756859049471,3.4045,4320.4,4320.3,2.0843323]
[1756859050072,0.1195,4320.0,4319.5,5.2742391]
[1756859050277,0.713,4318.6,4318.5,0.7245]
[1756859050472,0.713,4318.6,4318.3,0.236]
[1756859050669,0.421,4318.5,4317.9,3.2078]
[1756859050869,0.3015,4317.6,4317.5,1.1238323]
[1756859051065,0.1967,4317.6,4317.5,1.5273323]
[1756859051468,0.1967,4317.6,4317.5,1.8443323]
[1756859051665,3.7262,4318.1,4318.0,0.719]
[1756859051870,0.3099,4318.7,4318.1,0.317]
[1756859052179,0.7204,4318.6,4318.5,1.6443323]
[1756859053268,0.7204,4318.6,4318.5,0.2035]
[1756859055787,0.7204,4318.6,4318.5,0.5205]
[1756859059883,0.7204,4318.6,4318.3,0.236]
[1756859060074,0.7204,4318.6,4318.2,0.236]
[1756859060781,0.4105,4318.6,4318.2,0.553]
[1756859060978,0.7204,4318.4,4318.3,0.5205]
[1756859061379,0.7204,4318.4,4318.3,0.2035]
[1756859061578,0.7204,4318.4,4318.2,0.236]
[1756859061880,0.3099,4318.3,4318.2,0.553]
[1756859062083,0.7204,4318.3,4318.2,0.7565]
[1756859062686,0.7204,4318.3,4318.2,0.955]
[1756859067193,0.7204,4318.3,4318.2,0.236]
[1756859067495,3.9282,4318.3,4318.1,0.236]
[1756859067787,3.9282,4318.3,4317.8,0.317]
[1756859068095,0.7204,4318.0,4317.9,0.4395]
[1756859068390,0.7204,4318.0,4317.9,0.7565]
[1756859068685,0.7204,4318.0,4317.9,0.955]
[1756859069197,3.2078,4318.3,4318.2,0.719]
[1756859069394,3.5177,4318.8,4318.2,0.402]
[1756859069596,3.6183,4318.8,4318.7,0.2035]
[1756859069793,3.9282,4318.8,4318.7,0.5205]
[1756859071094,3.9282,4318.8,4318.3,0.236]
[1756859071492,3.9282,4318.8,4318.4,0.317]
[1756859071690,0.7204,4317.8,4317.7,5.335]
[1756859071895,0.2085,4317.3,4317.2,3.4113]
[1756859072188,0.2085,4317.3,4317.2,3.9268]
[1756859072189,0.7204,4317.3,4317.2,3.9268]
[1756859072391,0.7204,4317.3,4317.2,4.1628]
[1756859072593,0.7204,4317.3,4317.2,3.9268]
[1756859072989,0.7204,4317.3,4317.2,3.7608]
[1756859073190,0.7204,4317.3,4317.2,3.4438]
[1756859073390,0.7204,4317.3,4317.2,3.6473]
[1756859074999,0.7204,4317.3,4317.2,3.9643]
[1756859076497,0.7204,4317.3,4317.2,0.7565]
[1756859079100,0.7204,4317.3,4317.2,0.955]
[1756859079501,0.7204,4317.3,4316.7,30.561]
[1756859079694,0.7204,4316.5,4316.4,3.9268]
[1756859079895,0.7204,4316.5,4316.4,4.1628]
[1756859080396,3.2078,4317.0,4316.4,3.8458]
[1756859080696,3.4163,4317.0,4316.9,0.719]
[1756859080892,3.9282,4317.0,4316.9,0.2035]
[1756859081310,3.9282,4317.0,4316.9,0.7068]
[1756859081691,0.7204,4317.0,4316.9,0.7068]
[1756859082295,3.2078,4317.5,4316.9,0.7068]
[1756859082296,3.2078,4317.5,4316.9,0.3992]
[1756859082496,0.5039,4317.4,4317.3,0.7036]
[1756859082692,0.702,4317.4,4317.3,0.7036]
[1756859083005,0.702,4317.4,4317.3,0.2003]
[1756859083388,0.702,4317.4,4317.3,0.5079]
[1756859084803,0.702,4317.4,4317.0,0.3076]
[1756859085003,0.702,4317.4,4316.9,0.5436]
[1756859085198,0.3022,4317.3,4316.9,0.236]
[1756859085399,0.702,4317.0,4316.9,0.632]
[1756859085902,0.702,4317.0,4316.9,0.9396]
[1756859086399,0.702,4317.0,4316.9,0.7036]
[1756859086703,3.9098,4317.0,4316.9,0.5079]
[1756859087003,0.5039,4317.0,4316.9,0.7036]
[1756859087203,0.1959,4317.4,4316.9,0.396]
[1756859087497,0.1959,4317.4,4317.3,0.7036]
[1756859089499,0.3976,4317.4,4317.3,0.7036]
[1756859089800,0.8979,4317.4,4317.3,0.9396]
[1756859090300,0.8979,4317.4,4317.3,0.2003]
[1756859092105,0.8979,4317.4,4317.3,0.5079]
[1756859095309,0.8979,4317.4,4317.3,0.2003]
[1756859096011,0.8979,4317.4,4317.3,0.5079]
[1756859098305,0.8979,4317.4,4317.3,0.7036]
[1756859098610,0.1959,4317.4,4317.3,0.7036]
[1756859099609,0.3022,4318.4,4317.3,5.08034071]
[1756859099805,0.5039,4318.4,4318.3,0.7036]
[1756859100005,0.2017,4318.4,4318.3,0.7036]
[1756859100207,3.2078,4318.5,4318.4,0.3076]
[1756859100512,3.2078,4318.5,4318.4,0.7036]
[1756859101608,3.4095,4318.5,4318.4,0.7036]
[1756859101816,3.7117,4318.5,4318.4,0.7036]
[1756859102307,3.9098,4318.5,4318.4,0.7036]
[1756859103317,3.6076,4318.5,4318.4,0.7036]
[1756859103512,0.2017,4318.8,4318.7,0.396]
[1756859103721,0.2017,4318.8,4318.7,2.02732374]
[1756859104022,3.2078,4319.1,4319.0,0.8318]
[1756859104316,3.2078,4319.1,4319.0,2.15552374]
[1756859104518,3.9098,4319.1,4319.0,2.26332374]
[1756859104708,3.4095,4319.1,4319.0,2.26332374]
[1756859105218,3.7117,4319.1,4319.0,2.26332374]
[1756859106114,0.5039,4319.1,4319.0,2.26332374]
[1756859108214,0.2017,4319.1,4319.0,2.26332374]
[1756859109111,0.702,4320.1,4320.0,0.2003]
[1756859109914,0.702,4320.1,4319.8,0.3076]
[1756859111419,0.3998,4320.1,4320.0,1.72752374]
[1756859111620,0.3998,4320.1,4320.0,2.04952374]
[1756859112022,0.712,4320.1,4320.0,2.04952374]
[1756859112621,0.3998,4320.1,4319.7,0.322]
[1756859112813,0.5158,4319.4,4319.3,2.05632374]
[1756859113120,0.1944,4319.4,4319.3,2.29232374]
[1756859114032,0.5066,4319.4,4319.3,2.29232374]
[1756859114524,0.1944,4319.4,4319.3,2.29232374]
[1756859114825,0.3122,4319.7,4319.4,0.322]
[1756859115027,0.5066,4319.7,4319.6,2.05632374]
[1756859115224,0.7102,4319.7,4319.6,2.05632374]
[1756859116921,0.3122,4320.1,4319.6,2.05632374]
[1756859117218,0.7102,4320.1,4319.7,0.322]
[1756859117423,0.3122,4320.0,4319.6,1.32372374]
[1756859117624,0.398,4319.8,4319.7,0.4106]
[1756859117823,0.7102,4319.8,4319.7,0.7326]
[1756859120029,3.4022,4320.2,4320.1,0.4106]
[1756859120229,3.7144,4320.2,4320.1,0.7326]
[1756859121026,3.4022,4320.8,4320.7,0.4106]
[1756859121235,3.4022,4320.8,4320.7,2.05632374]
[1756859121420,3.2078,4321.3,4321.2,0.4106]
[1756859121624,3.2078,4321.3,4321.2,2.05632374]
[1756859122329,3.4022,4321.3,4321.2,2.05632374]
[1756859123327,3.918,4322.0,4321.9,0.7326]
[1756859124422,3.6058,4322.0,4321.9,0.7326]
[1756859125030,0.398,4322.0,4321.9,0.7326]
[1756859125230,0.1944,4322.0,4321.9,0.7326]
[1756859125833,0.5066,4322.0,4321.9,0.7326]
[1756859126332,0.1944,4322.0,4321.9,0.7326]
[1756859129239,3.2078,4322.6,4322.0,0.4452]
[1756859129437,0.1233,4323.5,4322.5,5.2980866]
[1756859129438,0.3122,4323.2,4322.5,5.2980866]
[1756859129638,0.3122,4323.2,4322.6,3.4438]
[1756859129935,0.5066,4323.2,4323.1,0.7326]
[1756859130126,0.1944,4323.2,4323.1,0.9686]
[1756859130327,3.3311,4324.0,4323.1,0.6466]
[1756859130524,0.1944,4323.3,4323.2,0.7326]
[1756859130727,3.43909,4324.0,4323.3,0.322]
[1756859130728,0.3122,4323.9,4323.3,0.322]
[1756859131028,0.3122,4323.9,4323.1,0.236]
[1756859131029,0.7102,4323.9,4323.8,0.7326]
[1756859132535,0.7102,4323.9,4323.5,0.322]
[1756859132730,0.7102,4323.9,4322.6,3.2078]
[1756859132731,0.7102,4323.9,4323.2,0.322]
[1756859132933,0.7102,4323.9,4323.3,0.236]
[1756859133938,0.7102,4323.9,4323.8,0.7326]
[1756859135231,0.398,4323.9,4323.8,0.7326]
[1756859135430,3.2078,4324.6,4323.9,0.322]
[1756859135636,3.918,4324.6,4323.9,0.322]
[1756859136739,3.918,4324.6,4324.5,0.5291]
[1756859137230,3.918,4324.6,4323.8,0.236]
[1756859137431,3.918,4324.6,4324.5,0.4106]
[1756859137732,3.4022,4324.6,4324.5,0.7326]
[1756859137938,3.4022,4325.1,4325.0,0.4106]
[1756859138136,3.4022,4325.1,4325.0,0.7326]
[1756859138331,3.918,4325.1,4325.0,0.7326]
[1756859138733,3.4022,4325.1,4325.0,0.7326]
[1756859138929,0.18180417,4326.7,4325.0,0.7326]
[1756859138930,3.4114,4326.3,4326.2,0.2071]
[1756859139137,0.3122,4326.7,4326.2,0.7326]
[1756859139328,0.7102,4326.7,4326.6,0.2071]
[1756859139529,0.398,4326.7,4326.6,0.7326]
[1756859139840,3.46440412,4327.5,4326.7,0.322]
[1756859140138,3.22840412,4327.5,4326.9,0.322]
[1756859140341,0.02060412,4327.5,4326.9,0.322]
[1756859140931,0.41860412,4327.5,4327.4,0.2071]
[1756859141133,0.73080412,4327.5,4327.4,0.7326]
[1756859141335,0.73080412,4327.5,4326.8,4.4422866]
[1756859141535,0.73080412,4327.5,4326.9,0.32]
[1756859142240,0.73080412,4327.5,4326.5,3.567]
[1756859142241,0.02060412,4327.5,4327.4,0.7308]
[1756859142539,0.23080412,4327.5,4327.4,0.7308]
[1756859142741,0.02060412,4327.5,4327.4,0.7308]
[1756859144540,0.42470412,4327.5,4327.4,0.7308]
[1756859144747,0.02060412,4327.5,4327.4,0.7308]
[1756859146245,0.02060412,4327.5,4327.4,0.9668]
[1756859151639,0.42470412,4327.5,4327.4,4.71235037]
[1756859151850,0.23080412,4327.5,4327.4,4.94835037]
[1756859152146,0.02060412,4327.5,4327.4,4.94835037]
[1756859153839,0.72960412,4327.5,4327.4,0.7308]
[1756859154041,0.23109001,4327.4,4325.9,0.32]
[1756859154247,3.2078,4326.0,4325.1,3.5278]
[1756859154542,3.98155037,4326.3,4324.6,3.98155037]
[1756859154543,3.2078,4325.4,4324.6,3.2078]
[1756859154746,3.2078,4324.8,4323.8,0.32]
[1756859154948,0.81551068,4325.3,4323.6,0.32]
[1756859154949,3.2078,4324.3,4323.6,0.32]
[1756859155147,3.2078,4324.3,4324.0,3.98155037]
[1756859155444,3.2078,4325.8,4324.6,0.32]
[1756859155650,3.2078,4325.3,4324.5,0.32]
[1756859155845,0.57883,4325.2,4324.3,3.2078]
[1756859156050,0.237,4325.2,4324.4,0.32]
[1756859156244,0.57920182,4325.1,4324.4,0.32]
[1756859156445,0.237,4325.2,4324.4,0.32]
[1756859156746,0.57920179,4325.1,4324.4,0.32]
[1756859157049,0.237,4325.2,4324.4,0.32]
[1756859157247,0.5792019,4325.1,4324.1,0.237]
[1756859157446,0.237,4325.2,4323.6,3.2078]
[1756859157447,3.2078,4324.6,4323.6,3.2078]
[1756859157748,0.81668586,4324.5,4323.5,0.32]
[1756859157952,0.57968586,4324.4,4323.5,0.32]
[1756859158145,0.81768586,4324.4,4323.5,0.1279]
[1756859158338,3.2078,4324.6,4323.6,0.32]
[1756859158339,0.57968586,4324.3,4323.6,0.32]
[1756859158549,0.57968586,4324.2,4323.6,0.32]
[1756859158759,0.238,4324.4,4323.6,0.32]
[1756859159048,0.58002617,4324.3,4323.6,0.32]
[1756859159245,0.58002617,4324.2,4323.6,0.32]
[1756859159452,3.4458,4324.6,4323.6,0.32]
[1756859159647,0.58038119,4324.5,4323.6,0.32]
[1756859159847,0.58038119,4324.4,4323.6,0.32]
[1756859160048,0.58038119,4324.3,4323.6,0.32]
[1756859160350,0.58038119,4324.2,4323.6,0.32]
[1756859160553,3.4458,4324.6,4324.1,0.32]
[1756859160756,0.58048081,4324.5,4324.4,4.30155037]
[1756859160945,3.2078,4325.2,4324.5,0.1279]
[1756859161141,0.58039456,4325.1,4324.4,3.7658]
[1756859161447,0.58039456,4325.0,4323.9,3.2078]
[1756859161648,3.98155037,4324.5,4323.8,0.32]
[1756859161851,3.2078,4324.7,4324.0,0.1279]
[1756859161852,0.58039456,4324.4,4324.0,0.1279]
[1756859162053,0.58039456,4324.3,4324.1,0.32]
[1756859162254,0.238,4324.6,4324.0,0.1279]
[1756859162452,0.58080808,4324.5,4324.1,0.32]
[1756859162653,3.2078,4324.7,4324.0,0.1279]
[1756859162852,0.58081555,4324.6,4324.1,0.32]
[1756859163050,3.2078,4324.7,4324.1,0.32]
[1756859163551,3.2078,4324.7,4323.7,0.32]
[1756859164256,0.58102623,4324.6,4323.7,0.32]
[1756859164448,3.2078,4324.7,4323.7,0.32]
[1756859164854,3.2078,4324.2,4323.1,3.2078]
[1756859165056,3.2078,4324.2,4323.3,0.32]
[1756859167152,0.238,4324.6,4323.7,0.32]
[1756859167353,0.58105649,4324.5,4323.7,0.32]
[1756859167559,0.58105649,4324.4,4323.7,0.32]
[1756859167763,0.238,4324.6,4323.7,0.32]
[1756859168060,0.58097157,4324.5,4323.7,0.32]
[1756859168260,3.2078,4324.8,4324.1,0.32]
[1756859168454,0.58083067,4324.7,4324.1,0.32]
[1756859168653,3.2078,4324.8,4324.1,0.32]
[1756859168853,0.58083639,4324.7,4324.1,0.32]
[1756859169059,3.2078,4324.8,4324.1,0.32]
[1756859169257,3.2078,4324.8,4324.5,0.1279]
[1756859169453,3.2078,4324.8,4324.6,0.32]
[1756859169760,3.2078,4324.8,4324.5,0.1279]
[1756859170657,3.2078,4324.8,4324.6,0.32]
[1756859170856,0.238,4325.2,4324.6,0.32]
[1756859171459,3.2078,4325.6,4324.6,0.32]
[1756859171652,0.58061632,4325.5,4324.6,0.32]
[1756859171852,0.238,4325.4,4324.6,0.32]
[1756859172460,3.2078,4325.6,4324.6,0.32]
[1756859172666,0.81865397,4325.5,4324.6,0.32]
[1756859172856,0.238,4325.5,4324.6,0.32]
[1756859173162,3.2078,4325.6,4324.6,0.32]
[1756859173362,0.81871479,4325.5,4324.6,0.32]
[1756859173562,0.238,4325.5,4324.6,0.32]
[1756859173960,0.238,4325.5,4324.6,0.5158]
[1756859174161,3.2078,4325.1,4324.2,0.297]
[1756859174865,3.2078,4325.1,4324.2,5.335]
[1756859175164,3.2078,4325.1,4324.3,0.297]
[1756859175559,3.2078,4325.1,4325.0,0.4928]
[1756859182371,3.2078,4325.1,4325.0,0.8267]
[1756859182559,3.2078,4325.1,4325.0,0.4928]
[1756859182762,3.2078,4325.1,4325.0,0.297]
[1756859183063,3.2078,4325.6,4325.0,0.5297]
[1756859183271,0.58483096,4325.5,4325.4,0.7011]
[1756859183466,0.58483096,4325.5,4325.4,0.297]
[1756859183661,0.58483096,4325.5,4324.8,0.4928]
[1756859183971,0.2917,4326.8,4325.4,4.27855037]
[1756859184164,0.4098,4326.8,4326.7,4.47435037]
[1756859185172,3.2078,4327.2,4326.7,4.38565037]
[1756859185366,3.2078,4327.2,4327.1,0.7011]
[1756859186372,0.4496,4327.4,4327.3,0.4928]
[1756859186674,2.0,4327.7,4327.4,0.7011]
[1756859187773,0.15290412,4327.5,4327.4,0.7011]
[1756859187968,0.02060412,4327.5,4327.4,0.7011]
[1756859190589,0.02060412,4327.5,4327.4,0.9401]
[1756859190784,2.0,4327.7,4327.4,0.6431]
[1756859190986,1.30753411,4330.0,4328.7,0.1958]
[1756859190987,0.7015,4328.8,4328.7,0.1958]
[1756859191191,0.1197,4328.0,4327.9,3.2078]
[1756859191395,0.1992,4327.1,4327.0,3.98155037]
[1756859191590,0.1197,4327.0,4325.8,3.2078]
[1756859191792,0.2917,4326.4,4326.3,3.98155037]
[1756859192096,3.2078,4326.9,4324.6,40.8]
[1756859192097,0.2917,4326.8,4325.9,7.18935037]
[1756859192281,0.2917,4326.9,4325.9,7.42935037]
[1756859192484,0.1197,4327.0,4326.5,3.2078]
[1756859192684,0.24,4327.4,4326.9,3.98155037]
[1756859193084,0.2917,4327.3,4326.9,3.98155037]
[1756859193296,0.2917,4327.0,4326.9,3.98155037]
[1756859194290,0.2917,4327.0,4326.5,3.5048]
[1756859194291,0.2917,4327.2,4326.5,3.2078]
[1756859194489,0.2917,4326.4,4324.9,0.297]
[1756859194694,0.2917,4326.2,4324.9,4.27855037]
[1756859194895,3.2078,4326.5,4325.9,4.27855037]
[1756859195091,0.2917,4327.1,4326.4,4.27855037]
[1756859195294,0.2917,4327.0,4326.9,3.98155037]
[1756859195592,0.2917,4327.6,4326.9,4.22155037]
[1756859195792,2.0,4327.7,4327.6,0.297]
[1756859196096,0.2917,4328.7,4327.6,0.241]
[1756859196293,0.2917,4328.7,4328.1,0.297]
[1756859196495,0.2917,4328.8,4328.2,0.241]
[1756859197298,0.2917,4328.8,4328.3,0.297]
[1756859197501,3.3778,4328.9,4328.3,0.297]
[1756859197794,0.2917,4328.8,4328.2,0.241]
[1756859198294,0.17,4328.9,4328.8,0.297]
[1756859198490,0.17,4328.9,4328.8,0.538]
[1756859199297,0.17,4328.9,4328.8,4.538]
[1756859199694,0.17,4328.9,4328.8,0.538]
[1756859202190,0.3045,4329.7,4328.8,0.241]
[1756859202397,0.3045,4329.7,4329.6,7.18935037]
[1756859202704,0.3045,4329.7,4329.4,0.24]
[1756859203202,0.3045,4329.9,4329.4,0.24]
[1756859203399,3.3342,4330.0,4329.4,0.24]
[1756859203601,0.3045,4329.9,4329.4,0.24]
[1756859203796,3.3342,4330.0,4329.4,0.24]
[1756859203998,0.3045,4329.9,4329.4,0.24]
[1756859204194,0.3045,4330.1,4329.6,4.42672697]
[1756859204393,0.1197,4330.5,4329.7,3.4478]
[1756859204394,0.3045,4330.4,4329.7,3.4478]
[1756859204600,0.3045,4330.4,4329.7,0.24]
[1756859206899,0.7201,4330.2,4330.1,3.407]
[1756859207095,0.7201,4330.2,4330.1,3.647]
[1756859207299,0.7201,4330.2,4330.1,0.24]
[1756859207502,0.7201,4330.2,4329.6,3.2078]
[1756859207503,0.3045,4330.1,4329.6,3.2078]
[1756859207800,0.8465,4330.0,4329.9,0.24]
[1756859209209,0.3045,4329.9,4329.6,3.2078]
[1756859209394,0.7201,4329.7,4329.6,3.2078]
[1756859209598,0.7201,4329.7,4328.9,3.2078]
[1756859209801,0.8465,4329.0,4328.9,3.2078]
[1756859210003,0.8465,4329.0,4328.9,3.4478]
[1756859210197,0.542,4328.5,4328.4,3.2078]
[1756859210402,0.5092,4328.5,4328.4,3.8503]
[1756859210706,3.3342,4329.5,4328.5,0.1684]
[1756859210707,0.3045,4329.4,4328.5,0.1684]
[1756859210901,0.1264,4329.5,4329.0,3.2078]
[1756859211103,0.1264,4329.5,4329.0,3.4478]
[1756859211406,0.5092,4329.1,4329.0,3.647]
[1756859211613,0.3045,4329.1,4329.0,4.0187]
[1756859212007,0.5092,4329.1,4329.0,3.8503]
[1756859212304,3.2078,4330.0,4329.0,8.0813]
[1756859212511,0.3045,4330.2,4330.0,0.1684]
[1756859212811,0.3045,4330.2,4330.1,0.24]
[1756859214007,0.3045,4330.2,4330.1,0.4084]
[1756859214213,0.3045,4330.2,4330.1,0.24]
[1756859215711,0.3045,4330.9,4330.1,0.24]
[1756859215910,0.3045,4330.9,4330.3,3.2078]
[1756859216112,0.3045,4330.9,4330.4,0.241]
[1756859216415,0.5092,4330.5,4330.4,0.4402]
[1756859216708,0.5092,4330.5,4330.4,0.6435]
[1756859217017,0.3045,4330.5,4330.4,0.6435]
[1756859217508,0.1264,4331.5,4330.4,0.6435]
[1756859217709,0.57957896,4331.4,4330.4,0.8119]
[1756859217912,0.57957896,4331.3,4330.4,0.8119]
[1756859218213,0.7201,4330.5,4330.4,0.4402]
[1756859218811,0.8465,4330.5,4330.4,0.241]
[1756859219519,0.7201,4330.5,4330.4,0.4402]
[1756859219708,0.7201,4330.5,4330.4,0.6435]
[1756859219909,3.2078,4331.3,4330.4,0.6435]
[1756859220116,0.5092,4330.5,4330.4,0.6435]
[1756859221216,0.1264,4331.0,4330.4,0.6435]
[1756859221515,0.2047,4331.0,4330.9,0.4025]
[1756859221816,0.3045,4331.0,4330.9,0.8119]
[1756859222214,0.3045,4331.5,4330.9,0.8119]
[1756859222417,0.5092,4331.8,4331.7,0.4025]
[1756859224213,0.3045,4331.8,4331.7,0.4025]
[1756859224513,0.3045,4332.3,4331.7,0.5709]
[1756859224718,0.1264,4332.0,4331.9,3.2078]
[1756859224920,0.8465,4332.0,4331.9,3.4488]
[1756859225412,3.2078,4332.9,4331.9,3.8513]
[1756859225721,0.8465,4332.0,4331.9,3.4488]
[1756859225917,0.8465,4332.0,4331.9,3.648]
[1756859226215,0.5092,4332.0,4331.9,3.8513]
[1756859226419,3.2078,4332.9,4331.9,3.8513]
[1756859226716,0.57967258,4332.4,4331.9,4.019]
[1756859226912,3.2078,4332.9,4331.9,4.019]
[1756859227114,0.3045,4332.3,4331.9,3.8513]
[1756859227315,0.5092,4332.8,4332.7,0.1992]
[1756859227515,1.08882668,4332.8,4332.7,0.1992]
[1756859227715,1.29972668,4332.8,4332.7,0.1992]
[1756859227915,1.29972668,4332.8,4332.6,0.241]
[1756859228120,1.29972668,4332.7,4332.6,0.241]
[1756859229022,0.99522668,4332.7,4332.2,0.241]
[1756859229321,0.7201,4332.1,4332.0,3.2078]
[1756859229516,0.4156,4330.9,4330.8,3.2078]
[1756859229713,0.3045,4330.9,4330.8,3.2078]
[1756859230421,0.1264,4331.0,4330.4,0.241]
[1756859230621,0.88419295,4330.9,4330.4,0.241]
[1756859230915,0.1264,4331.0,4330.4,0.241]
[1756859231121,0.3045,4331.4,4330.8,0.1677]
[1756859231322,0.3087,4331.2,4331.0,0.169]
[1756859231624,0.3087,4331.8,4330.9,0.241]
[1756859231813,0.3087,4331.6,4330.9,0.241]
[1756859232119,0.3087,4331.4,4330.7,3.2078]
[1756859232323,0.1233,4331.5,4330.8,0.241]
[1756859232523,0.88853313,4331.4,4330.8,0.241]
[1756859232723,0.1233,4331.5,4331.2,3.2078]
[1756859232924,0.3087,4331.3,4330.8,0.241]
[1756859233120,0.1233,4331.0,4330.8,0.241]
[1756859233313,0.3087,4330.9,4330.8,0.241]
[1756859233515,0.3087,4332.3,4331.0,0.169]
[1756859233717,0.3087,4332.2,4332.0,3.2078]
[1756859233918,0.3087,4332.2,4332.0,3.3768]
[1756859234718,0.57980177,4332.1,4331.7,0.242]
[1756859234919,0.3087,4331.9,4331.3,0.242]
[1756859235923,0.1233,4332.0,4330.7,0.242]
[1756859235924,0.3087,4331.4,4330.7,0.242]
[1756859236124,0.3087,4331.2,4330.7,0.242]
[1756859236318,0.3087,4331.4,4330.7,0.242]
[1756859236721,0.3087,4331.4,4331.3,3.2078]
[1756859236923,0.3087,4331.4,4330.7,0.242]
[1756859237118,0.3087,4331.4,4331.3,3.2078]
[1756859237826,0.3087,4331.9,4331.3,3.4498]